[Event "Titled Tuesday Blitz June 6 Early 2023"]
[White "Krutko, Anatoly"]
[Black "Manon-og, Ramon Jr."]
[WhiteFideId "4185862"]
[BlackFideId "5200776"]
[WhiteElo "2378"]
[BlackElo "2376"]
[Result "0-1"]
[Round "8"]
[TimeControl "180+2"]
[Date "2023.06.06"]
[WhiteClock "0:00:03"]
[BlackClock "0:00:16"]
[Board "107"]

1. e4 {[%clk 0:02:56]}  c5 {[%clk 0:02:59]} 2. Nf3 {[%clk 0:02:56]}  d6 {[%clk 0:02:59]} 3. d4 {[%clk 0:02:50]}  cxd4 {[%clk 0:03:00]} 4. Qxd4 {[%clk 0:02:51]}  Nc6 {[%clk 0:03:00]} 5. Bb5 {[%clk 0:02:51]}  Bd7 {[%clk 0:03:01]} 6. Bxc6 {[%clk 0:02:51]}  Bxc6 {[%clk 0:03:01]} 7. Nc3 {[%clk 0:02:52]}  e5 {[%clk 0:02:59]} 8. Qd3 {[%clk 0:02:49]}  h6 {[%clk 0:02:59]} 9. Be3 {[%clk 0:02:48]}  Nf6 {[%clk 0:02:59]} 10. O-O {[%clk 0:02:44]}  Be7 {[%clk 0:02:58]} 11. Nd5 {[%clk 0:02:44]}  Nxd5 {[%clk 0:02:58]} 12. exd5 {[%clk 0:02:40]}  Bd7 {[%clk 0:02:58]} 13. c4 {[%clk 0:02:39]}  O-O {[%clk 0:02:53]} 14. c5 {[%clk 0:02:39]}  Qe8 {[%clk 0:02:44]} 15. Rfc1 {[%clk 0:02:37]}  f5 {[%clk 0:02:41]} 16. Qb3 {[%clk 0:02:32]}  Rb8 {[%clk 0:02:35]} 17. Nxe5 {[%clk 0:02:30]}  dxe5 {[%clk 0:02:29]} 18. d6+ {[%clk 0:02:30]}  Kh8 {[%clk 0:02:25]} 19. dxe7 {[%clk 0:02:31]}  Qxe7 {[%clk 0:02:26]} 20. f4 {[%clk 0:02:31]}  Bc6 {[%clk 0:02:16]} 21. Re1 {[%clk 0:02:21]}  e4 {[%clk 0:02:10]} 22. Bd4 {[%clk 0:02:20]}  Rbd8 {[%clk 0:02:04]} 23. Rad1 {[%clk 0:02:17]}  Qh4 {[%clk 0:01:58]} 24. Qc3 {[%clk 0:02:09]}  Qg4 {[%clk 0:01:54]} 25. Rd2 {[%clk 0:02:04]}  Rd7 {[%clk 0:01:51]} 26. Be5 {[%clk 0:01:45]}  e3 {[%clk 0:01:39]} 27. Qxe3 {[%clk 0:01:35]}  Rfd8 {[%clk 0:01:32]} 28. Bd6 {[%clk 0:01:29]}  Rf7 {[%clk 0:01:24]} 29. Qg3 {[%clk 0:01:27]}  Qh5 {[%clk 0:01:23]} 30. Rde2 {[%clk 0:01:25]}  Kh7 {[%clk 0:01:19]} 31. h3 {[%clk 0:01:23]}  Rf6 {[%clk 0:01:17]} 32. Be7 {[%clk 0:00:58]}  Rg6 {[%clk 0:01:12]} 33. Qh4 {[%clk 0:00:58]}  Qxh4 {[%clk 0:01:00]} 34. Bxh4 {[%clk 0:00:59]}  Rd3 {[%clk 0:01:01]} 35. Kh2 {[%clk 0:00:56]}  Be4 {[%clk 0:01:00]} 36. Be7 {[%clk 0:00:53]}  Rdg3 {[%clk 0:00:50]} 37. Rg1 {[%clk 0:00:53]}  h5 {[%clk 0:00:40]} 38. Bd6 {[%clk 0:00:52]}  Rd3 {[%clk 0:00:39]} 39. Be5 {[%clk 0:00:46]}  Ra6 {[%clk 0:00:36]} 40. a3 {[%clk 0:00:45]}  Rc6 {[%clk 0:00:35]} 41. Rc1 {[%clk 0:00:44]}  b6 {[%clk 0:00:33]} 42. b4 {[%clk 0:00:26]}  Rxa3 {[%clk 0:00:30]} 43. Bd6 {[%clk 0:00:24]}  a6 {[%clk 0:00:21]} 44. Rce1 {[%clk 0:00:17]}  Rb3 {[%clk 0:00:20]} 45. Be7 {[%clk 0:00:09]}  Rxb4 {[%clk 0:00:19]} 46. cxb6 {[%clk 0:00:10]}  Rbxb6 {[%clk 0:00:20]} 47. Ra1 {[%clk 0:00:09]}  Rb5 {[%clk 0:00:18]} 48. Bd8 {[%clk 0:00:09]}  Rd5 {[%clk 0:00:17]} 49. Ba5 {[%clk 0:00:08]}  Rc4 {[%clk 0:00:15]} 50. Rd2 {[%clk 0:00:06]}  Rxd2 {[%clk 0:00:15]} 51. Bxd2 {[%clk 0:00:07]}  Rc2 {[%clk 0:00:15]} 52. Rd1 {[%clk 0:00:06]}  a5 {[%clk 0:00:16]} 53. h4 {[%clk 0:00:05]}  a4 {[%clk 0:00:16]} 54. Kh3 {[%clk 0:00:02]}  a3 {[%clk 0:00:17]} 55. Be3 {[%clk 0:00:02]}  Rc3 {[%clk 0:00:16]} 56. Re1 {[%clk 0:00:02]}  a2 {[%clk 0:00:16]} 57. Kh2 {[%clk 0:00:02]}  Rxe3 {[%clk 0:00:16]} 58. Rxe3 {[%clk 0:00:03]}  a1=Q {[%clk 0:00:16]} 0-1


[Site "https://www.chess.com"]

[Event "Titled Tuesday Blitz June 6 Early 2023"]
[White "feuervogel1000000"]
[Black "Da Silva, Lindolfo Luiz"]
[BlackFideId "2106558"]
[WhiteElo "2504"]
[BlackElo "2369"]
[Result "1/2-1/2"]
[Round "8"]
[TimeControl "180+2"]
[Date "2023.06.06"]
[WhiteClock "0:02:08"]
[BlackClock "0:00:35"]
[Board "109"]

1. e4 {[%clk 0:03:00]}  c5 {[%clk 0:01:24]} 2. Nf3 {[%clk 0:02:59]}  Nc6 {[%clk 0:01:23]} 3. d4 {[%clk 0:02:58]}  c4 {[%clk 0:01:21]} 4. Bxc4 {[%clk 0:02:56]}  e6 {[%clk 0:01:18]} 5. O-O {[%clk 0:02:56]}  Nf6 {[%clk 0:00:39]} 6. e5 {[%clk 0:02:55]}  Nd5 {[%clk 0:00:39]} 7. Be2 {[%clk 0:02:54]}  Be7 {[%clk 0:00:38]} 8. c4 {[%clk 0:02:53]}  Nb6 {[%clk 0:00:39]} 9. d5 {[%clk 0:02:54]}  Na5 {[%clk 0:00:35]} 10. d6 {[%clk 0:02:54]}  Bf8 {[%clk 0:00:35]} 11. c5 {[%clk 0:02:54]}  Nd5 {[%clk 0:00:34]} 12. Nd4 {[%clk 0:02:48]}  Nc6 {[%clk 0:00:34]} 13. f4 {[%clk 0:02:45]}  g6 {[%clk 0:00:31]} 14. Nc3 {[%clk 0:02:40]}  Nxc3 {[%clk 0:00:28]} 15. bxc3 {[%clk 0:02:41]}  a6 {[%clk 0:00:27]} 16. Qa4 {[%clk 0:02:32]}  Bg7 {[%clk 0:00:25]} 17. Rb1 {[%clk 0:02:32]}  O-O {[%clk 0:00:25]} 18. Rb6 {[%clk 0:02:32]}  f6 {[%clk 0:00:23]} 19. Nxc6 {[%clk 0:02:29]}  bxc6 {[%clk 0:00:20]} 20. Qe4 {[%clk 0:02:27]}  fxe5 {[%clk 0:00:19]} 21. fxe5 {[%clk 0:02:27]}  Rxf1+ {[%clk 0:00:20]} 22. Bxf1 {[%clk 0:02:28]}  a5 {[%clk 0:00:19]} 23. h4 {[%clk 0:02:24]}  Qf8 {[%clk 0:00:19]} 24. Bg5 {[%clk 0:02:24]}  Qf5 {[%clk 0:00:19]} 25. Qxf5 {[%clk 0:02:24]}  gxf5 {[%clk 0:00:20]} 26. a4 {[%clk 0:02:21]}  Bxe5 {[%clk 0:00:20]} 27. Bd2 {[%clk 0:02:20]}  Bg3 {[%clk 0:00:16]} 28. h5 {[%clk 0:02:14]}  Kg7 {[%clk 0:00:09]} 29. Bc4 {[%clk 0:02:11]}  e5 {[%clk 0:00:07]} 30. Kf1 {[%clk 0:02:10]}  e4 {[%clk 0:00:07]} 31. Ke2 {[%clk 0:01:56]}  f4 {[%clk 0:00:06]} 32. Be1 {[%clk 0:01:53]}  Bh2 {[%clk 0:00:05]} 33. Bh4 {[%clk 0:01:53]}  Kh6 {[%clk 0:00:06]} 34. Bf7 {[%clk 0:01:51]}  Ba6+ {[%clk 0:00:05]} 35. Kf2 {[%clk 0:01:50]}  Bd3 {[%clk 0:00:03]} 36. Rb7 {[%clk 0:01:47]}  Rb8 {[%clk 0:00:03]} 37. Rxb8 {[%clk 0:01:47]}  e3+ {[%clk 0:00:03]} 38. Kf3 {[%clk 0:01:47]}  e2 {[%clk 0:00:02]} 39. Be1 {[%clk 0:01:47]}  Bg3 {[%clk 0:00:02]} 40. Bd2 {[%clk 0:01:46]}  e1=Q {[%clk 0:00:02]} 41. Bxe1 {[%clk 0:01:46]}  Bxe1 {[%clk 0:00:03]} 42. Kxf4 {[%clk 0:01:46]}  Bxc3 {[%clk 0:00:04]} 43. Be8 {[%clk 0:01:46]}  Bd4 {[%clk 0:00:03]} 44. Bxd7 {[%clk 0:01:45]}  Bxc5 {[%clk 0:00:04]} 45. Bf5 {[%clk 0:01:44]}  Bxd6+ {[%clk 0:00:04]} 46. Ke3 {[%clk 0:01:42]}  Bxb8 {[%clk 0:00:05]} 47. Kxd3 {[%clk 0:01:42]}  Bd6 {[%clk 0:00:05]} 48. Kc4 {[%clk 0:01:42]}  Bb4 {[%clk 0:00:05]} 49. g4 {[%clk 0:01:42]}  c5 {[%clk 0:00:06]} 50. Kd5 {[%clk 0:01:43]}  Kg5 {[%clk 0:00:07]} 51. Ke6 {[%clk 0:01:43]}  h6 {[%clk 0:00:08]} 52. Kd5 {[%clk 0:01:42]}  Ba3 {[%clk 0:00:09]} 53. Kc4 {[%clk 0:01:41]}  Bb4 {[%clk 0:00:10]} 54. Bd7 {[%clk 0:01:42]}  Be1 {[%clk 0:00:11]} 55. Kd5 {[%clk 0:01:42]}  Bb4 {[%clk 0:00:11]} 56. Bf5 {[%clk 0:01:42]}  c4 {[%clk 0:00:12]} 57. Kxc4 {[%clk 0:01:42]}  Be1 {[%clk 0:00:12]} 58. Kd5 {[%clk 0:01:43]}  Bb4 {[%clk 0:00:13]} 59. Ke6 {[%clk 0:01:43]}  Be1 {[%clk 0:00:14]} 60. Kf7 {[%clk 0:01:43]}  Bb4 {[%clk 0:00:15]} 61. Be6 {[%clk 0:01:44]}  Be1 {[%clk 0:00:16]} 62. Kg7 {[%clk 0:01:44]}  Bb4 {[%clk 0:00:17]} 63. Kf7 {[%clk 0:01:45]}  Be1 {[%clk 0:00:18]} 64. Ke8 {[%clk 0:01:46]}  Bb4 {[%clk 0:00:18]} 65. Kd7 {[%clk 0:01:47]}  Be1 {[%clk 0:00:19]} 66. Kd6 {[%clk 0:01:48]}  Bb4+ {[%clk 0:00:20]} 67. Kc6 {[%clk 0:01:49]}  Be1 {[%clk 0:00:20]} 68. Kb5 {[%clk 0:01:49]}  Bb4 {[%clk 0:00:21]} 69. Kc4 {[%clk 0:01:50]}  Kf6 {[%clk 0:00:22]} 70. Kd3 {[%clk 0:01:51]}  Kg5 {[%clk 0:00:23]} 71. Bf5 {[%clk 0:01:51]}  Be7 {[%clk 0:00:23]} 72. Ke2 {[%clk 0:01:50]}  Bb4 {[%clk 0:00:24]} 73. Kd3 {[%clk 0:01:51]}  Be7 {[%clk 0:00:24]} 74. Ke2 {[%clk 0:01:51]}  Bb4 {[%clk 0:00:25]} 75. Be6 {[%clk 0:01:52]}  Be7 {[%clk 0:00:26]} 76. Bc4 {[%clk 0:01:53]}  Bb4 {[%clk 0:00:27]} 77. Kf3 {[%clk 0:01:53]}  Be7 {[%clk 0:00:27]} 78. Bd3 {[%clk 0:01:54]}  Bb4 {[%clk 0:00:28]} 79. Ke4 {[%clk 0:01:55]}  Be7 {[%clk 0:00:29]} 80. Kd5 {[%clk 0:01:56]}  Bb4 {[%clk 0:00:30]} 81. Ke6 {[%clk 0:01:56]}  Be1 {[%clk 0:00:30]} 82. Bf5 {[%clk 0:01:57]}  Bb4 {[%clk 0:00:31]} 83. Kf7 {[%clk 0:01:58]}  Be1 {[%clk 0:00:32]} 84. Kg7 {[%clk 0:01:59]}  Bb4 {[%clk 0:00:33]} 85. Kh7 {[%clk 0:01:59]}  Be1 {[%clk 0:00:33]} 86. Bg6 {[%clk 0:02:00]}  Bb4 {[%clk 0:00:34]} 87. Kg8 {[%clk 0:02:01]}  Be1 {[%clk 0:00:34]} 88. Kf7 {[%clk 0:02:02]}  Bb4 {[%clk 0:00:35]} 89. Ke6 {[%clk 0:02:03]}  Be1 {[%clk 0:00:35]} 90. Kd5 {[%clk 0:02:04]}  Bb4 {[%clk 0:00:35]} 91. Ke4 {[%clk 0:02:05]}  Be7 {[%clk 0:00:34]} 92. Bf5 {[%clk 0:02:06]}  Bb4 {[%clk 0:00:34]} 93. Ke3 {[%clk 0:02:07]}  Be7 {[%clk 0:00:35]} 94. Ke2 {[%clk 0:02:08]} 1/2-1/2


[Site "https://www.chess.com"]

[Event "Titled Tuesday Blitz June 6 Early 2023"]
[White "Ginzburg, Yakov"]
[Black "Dwilewicz, Katarzyna"]
[WhiteFideId "4157176"]
[BlackFideId "1148486"]
[WhiteElo "2305"]
[BlackElo "2098"]
[Result "1-0"]
[Round "8"]
[TimeControl "180+2"]
[Date "2023.06.06"]
[WhiteClock "0:00:13"]
[BlackClock "0:00:01"]
[Board "110"]

1. g3 {[%clk 0:02:58]}  d5 {[%clk 0:02:59]} 2. Bg2 {[%clk 0:02:58]}  e5 {[%clk 0:02:56]} 3. c4 {[%clk 0:02:57]}  d4 {[%clk 0:02:53]} 4. d3 {[%clk 0:02:55]}  Nc6 {[%clk 0:02:51]} 5. f4 {[%clk 0:02:55]}  exf4 {[%clk 0:02:43]} 6. Bxf4 {[%clk 0:02:54]}  Nf6 {[%clk 0:02:44]} 7. Nf3 {[%clk 0:02:54]}  Bb4+ {[%clk 0:02:44]} 8. Nbd2 {[%clk 0:02:54]}  O-O {[%clk 0:02:43]} 9. O-O {[%clk 0:02:54]}  Nh5 {[%clk 0:02:35]} 10. a3 {[%clk 0:02:22]}  Nxf4 {[%clk 0:02:34]} 11. gxf4 {[%clk 0:02:21]}  Bd6 {[%clk 0:02:29]} 12. Ng5 {[%clk 0:02:21]}  Bf5 {[%clk 0:01:59]} 13. Nde4 {[%clk 0:02:18]}  h6 {[%clk 0:01:54]} 14. Nxd6 {[%clk 0:02:17]}  Qxd6 {[%clk 0:01:54]} 15. Ne4 {[%clk 0:02:16]}  Qg6 {[%clk 0:01:53]} 16. Kh1 {[%clk 0:02:15]}  Rad8 {[%clk 0:01:44]} 17. b4 {[%clk 0:02:13]}  Bg4 {[%clk 0:01:36]} 18. Qd2 {[%clk 0:02:00]}  Rfe8 {[%clk 0:01:32]} 19. Rf2 {[%clk 0:01:59]}  f5 {[%clk 0:01:29]} 20. Nc5 {[%clk 0:01:58]}  b6 {[%clk 0:01:26]} 21. Na6 {[%clk 0:01:36]}  Rd7 {[%clk 0:01:20]} 22. Rg1 {[%clk 0:01:32]}  Qd6 {[%clk 0:01:12]} 23. c5 {[%clk 0:01:31]}  Qe6 {[%clk 0:01:05]} 24. b5 {[%clk 0:01:19]}  Na5 {[%clk 0:00:58]} 25. c6 {[%clk 0:01:19]}  Rde7 {[%clk 0:00:58]} 26. Nb4 {[%clk 0:01:11]}  Kh7 {[%clk 0:00:56]} 27. Nd5 {[%clk 0:01:06]}  Rf7 {[%clk 0:00:48]} 28. h3 {[%clk 0:01:03]}  Bh5 {[%clk 0:00:43]} 29. Kh2 {[%clk 0:01:01]}  Nb3 {[%clk 0:00:42]} 30. Qb4 {[%clk 0:01:01]}  Nc5 {[%clk 0:00:36]} 31. Qxd4 {[%clk 0:01:00]}  Qd6 {[%clk 0:00:21]} 32. Bf3 {[%clk 0:00:37]}  Bxf3 {[%clk 0:00:19]} 33. exf3 {[%clk 0:00:36]}  Rd8 {[%clk 0:00:18]} 34. Rfg2 {[%clk 0:00:36]}  g5 {[%clk 0:00:14]} 35. h4 {[%clk 0:00:22]}  Qxd5 {[%clk 0:00:14]} 36. Qxd5 {[%clk 0:00:22]}  Rxd5 {[%clk 0:00:15]} 37. fxg5 {[%clk 0:00:17]}  Rg7 {[%clk 0:00:12]} 38. g6+ {[%clk 0:00:17]}  Kg8 {[%clk 0:00:11]} 39. Re2 {[%clk 0:00:16]}  Rd8 {[%clk 0:00:07]} 40. h5 {[%clk 0:00:15]}  Nxd3 {[%clk 0:00:06]} 41. Rd1 {[%clk 0:00:15]}  Kf8 {[%clk 0:00:06]} 42. Red2 {[%clk 0:00:14]}  Re7 {[%clk 0:00:05]} 43. Rxd3 {[%clk 0:00:14]}  Re2+ {[%clk 0:00:04]} 44. Kg3 {[%clk 0:00:14]}  Rxd3 {[%clk 0:00:03]} 45. Rxd3 {[%clk 0:00:14]}  Ra2 {[%clk 0:00:03]} 46. Kf4 {[%clk 0:00:14]}  Ke7 {[%clk 0:00:02]} 47. Kxf5 {[%clk 0:00:14]}  Rf2 {[%clk 0:00:01]} 48. f4 {[%clk 0:00:13]}  a5 {[%clk 0:00:01]} 49. bxa6 {[%clk 0:00:13]} 1-0


[Site "https://www.chess.com"]

[Event "Titled Tuesday Blitz June 6 Early 2023"]
[White "Mrithyunjay Mahadevan"]
[Black "Rian, Kapriaga"]
[WhiteFideId "45003521"]
[BlackFideId "7103263"]
[WhiteElo "1626"]
[BlackElo "2336"]
[Result "1-0"]
[Round "8"]
[TimeControl "180+2"]
[Date "2023.06.06"]
[WhiteClock "0:02:10"]
[BlackClock "0:01:56"]
[Board "113"]

1. d4 {[%clk 0:03:00]}  e6 {[%clk 0:02:58]} 2. e4 {[%clk 0:02:59]}  d5 {[%clk 0:02:55]} 3. Nc3 {[%clk 0:03:00]}  dxe4 {[%clk 0:02:54]} 4. Nxe4 {[%clk 0:03:01]}  Nf6 {[%clk 0:02:51]} 5. Nxf6+ {[%clk 0:02:58]}  Qxf6 {[%clk 0:02:46]} 6. Nf3 {[%clk 0:02:56]}  Nd7 {[%clk 0:02:43]} 7. Bd3 {[%clk 0:02:49]}  h6 {[%clk 0:02:41]} 8. Be3 {[%clk 0:02:46]}  Bd6 {[%clk 0:02:39]} 9. Qe2 {[%clk 0:02:44]}  b6 {[%clk 0:02:35]} 10. Be4 {[%clk 0:02:41]}  Rb8 {[%clk 0:02:32]} 11. O-O-O {[%clk 0:02:40]}  O-O {[%clk 0:02:19]} 12. g4 {[%clk 0:02:38]}  Bf4 {[%clk 0:02:18]} 13. h4 {[%clk 0:02:35]}  Bxe3+ {[%clk 0:02:17]} 14. fxe3 {[%clk 0:02:32]}  Bb7 {[%clk 0:02:15]} 15. g5 {[%clk 0:02:32]}  Qe7 {[%clk 0:02:09]} 16. Bxb7 {[%clk 0:02:22]}  Rxb7 {[%clk 0:02:07]} 17. gxh6 {[%clk 0:02:23]}  gxh6 {[%clk 0:02:06]} 18. Rdg1+ {[%clk 0:02:21]}  Kh8 {[%clk 0:02:07]} 19. Qg2 {[%clk 0:02:20]}  Qf6 {[%clk 0:02:05]} 20. Ne5 {[%clk 0:02:12]}  Nxe5 {[%clk 0:02:04]} 21. dxe5 {[%clk 0:02:12]}  Qxe5 {[%clk 0:02:01]} 22. Qxb7 {[%clk 0:02:12]}  Qxe3+ {[%clk 0:02:00]} 23. Kb1 {[%clk 0:02:12]}  Qe5 {[%clk 0:01:58]} 24. Qg2 {[%clk 0:02:11]}  a5 {[%clk 0:01:56]} 25. Rh3 {[%clk 0:02:10]}  a4 {[%clk 0:01:56]} 26. Rg3 {[%clk 0:02:10]} 1-0


[Site "https://www.chess.com"]

[Event "Titled Tuesday Blitz June 6 Early 2023"]
[White "Georg, Heinz"]
[Black "cristianserban1"]
[WhiteFideId "4607295"]
[WhiteElo "2328"]
[BlackElo "2470"]
[Result "1-0"]
[Round "8"]
[TimeControl "180+2"]
[Date "2023.06.06"]
[WhiteClock "0:00:30"]
[BlackClock "0:00:02"]
[Board "114"]

1. e4 {[%clk 0:03:00]}  c5 {[%clk 0:02:58]} 2. Nf3 {[%clk 0:03:00]}  e6 {[%clk 0:02:59]} 3. b3 {[%clk 0:02:59]}  d5 {[%clk 0:02:58]} 4. exd5 {[%clk 0:02:59]}  exd5 {[%clk 0:02:59]} 5. Bb2 {[%clk 0:02:58]}  Nf6 {[%clk 0:02:31]} 6. Bb5+ {[%clk 0:02:57]}  Bd7 {[%clk 0:02:30]} 7. Qe2+ {[%clk 0:02:57]}  Qe7 {[%clk 0:02:29]} 8. Bxf6 {[%clk 0:02:41]}  Qxe2+ {[%clk 0:02:02]} 9. Bxe2 {[%clk 0:02:38]}  gxf6 {[%clk 0:02:02]} 10. O-O {[%clk 0:02:32]}  Bd6 {[%clk 0:02:00]} 11. d4 {[%clk 0:02:32]}  cxd4 {[%clk 0:01:49]} 12. Nxd4 {[%clk 0:02:31]}  Be5 {[%clk 0:01:49]} 13. c3 {[%clk 0:02:31]}  Nc6 {[%clk 0:01:31]} 14. Nxc6 {[%clk 0:02:30]}  bxc6 {[%clk 0:01:31]} 15. f4 {[%clk 0:02:31]}  Bd6 {[%clk 0:01:31]} 16. c4 {[%clk 0:02:14]}  d4 {[%clk 0:01:28]} 17. Nd2 {[%clk 0:02:14]}  O-O-O {[%clk 0:01:19]} 18. Ne4 {[%clk 0:02:12]}  Be7 {[%clk 0:01:19]} 19. f5 {[%clk 0:02:08]}  Rhe8 {[%clk 0:01:12]} 20. c5 {[%clk 0:01:59]}  Kc7 {[%clk 0:00:50]} 21. Bc4 {[%clk 0:01:55]}  Rf8 {[%clk 0:00:35]} 22. Rad1 {[%clk 0:01:53]}  Bc8 {[%clk 0:00:34]} 23. b4 {[%clk 0:01:46]}  Rd7 {[%clk 0:00:22]} 24. Rd3 {[%clk 0:01:42]}  Bd8 {[%clk 0:00:19]} 25. Rfd1 {[%clk 0:01:20]}  Re7 {[%clk 0:00:15]} 26. Nd6 {[%clk 0:01:21]}  Re5 {[%clk 0:00:04]} 27. Rxd4 {[%clk 0:00:55]}  Bxf5 {[%clk 0:00:04]} 28. Nxf7 {[%clk 0:00:55]}  Be7 {[%clk 0:00:03]} 29. Nxe5 {[%clk 0:00:55]}  fxe5 {[%clk 0:00:04]} 30. R4d2 {[%clk 0:00:48]}  Bg5 {[%clk 0:00:04]} 31. Re2 {[%clk 0:00:45]}  Bg4 {[%clk 0:00:04]} 32. Rxe5 {[%clk 0:00:41]}  Bf6 {[%clk 0:00:02]} 33. Rf1 {[%clk 0:00:30]} 1-0


[Site "https://www.chess.com"]

[Event "Titled Tuesday Blitz June 6 Early 2023"]
[White "Xu, Daniel"]
[Black "Vaglio Munoz, Jaime"]
[WhiteFideId "2627345"]
[BlackFideId "6500145"]
[WhiteElo "1980"]
[BlackElo "2199"]
[Result "0-1"]
[Round "8"]
[TimeControl "180+2"]
[Date "2023.06.06"]
[WhiteClock "0:00:01"]
[BlackClock "0:00:48"]
[Board "115"]

1. e4 {[%clk 0:03:00]}  c5 {[%clk 0:02:59]} 2. Nf3 {[%clk 0:03:01]}  Qa5 {[%clk 0:02:58]} 3. Nc3 {[%clk 0:02:59]}  a6 {[%clk 0:02:58]} 4. d4 {[%clk 0:02:46]}  b5 {[%clk 0:02:57]} 5. dxc5 {[%clk 0:02:26]}  e6 {[%clk 0:02:56]} 6. Be3 {[%clk 0:01:58]}  b4 {[%clk 0:02:54]} 7. Ne2 {[%clk 0:01:58]}  Bxc5 {[%clk 0:02:54]} 8. Bxc5 {[%clk 0:01:58]}  Qxc5 {[%clk 0:02:54]} 9. Ned4 {[%clk 0:01:56]}  Bb7 {[%clk 0:02:52]} 10. Bd3 {[%clk 0:01:55]}  Nc6 {[%clk 0:02:51]} 11. Nb3 {[%clk 0:01:52]}  Qb6 {[%clk 0:02:48]} 12. O-O {[%clk 0:01:50]}  Nf6 {[%clk 0:02:47]} 13. Qe2 {[%clk 0:01:47]}  h6 {[%clk 0:02:44]} 14. e5 {[%clk 0:01:46]}  Nd5 {[%clk 0:02:43]} 15. Nbd2 {[%clk 0:01:23]}  Nf4 {[%clk 0:02:40]} 16. Qe4 {[%clk 0:01:18]}  Nxd3 {[%clk 0:02:39]} 17. Qxd3 {[%clk 0:01:18]}  O-O {[%clk 0:02:32]} 18. Ne4 {[%clk 0:01:12]}  Ne7 {[%clk 0:02:11]} 19. Nd6 {[%clk 0:01:01]}  Ng6 {[%clk 0:02:02]} 20. Rfe1 {[%clk 0:00:58]}  Qc6 {[%clk 0:01:59]} 21. Nxb7 {[%clk 0:00:57]}  Qxb7 {[%clk 0:01:58]} 22. Rad1 {[%clk 0:00:56]}  Rfd8 {[%clk 0:01:57]} 23. Qd6 {[%clk 0:00:56]}  a5 {[%clk 0:01:55]} 24. Rd2 {[%clk 0:00:54]}  Ra6 {[%clk 0:01:55]} 25. Qd4 {[%clk 0:00:52]}  Rc6 {[%clk 0:01:48]} 26. Red1 {[%clk 0:00:50]}  Nf8 {[%clk 0:01:48]} 27. Qe4 {[%clk 0:00:45]}  Qc7 {[%clk 0:01:47]} 28. Nd4 {[%clk 0:00:44]}  Rc4 {[%clk 0:01:45]} 29. Qe3 {[%clk 0:00:40]}  Qc5 {[%clk 0:01:12]} 30. Rd3 {[%clk 0:00:30]}  d5 {[%clk 0:01:07]} 31. b3 {[%clk 0:00:26]}  Rc3 {[%clk 0:01:06]} 32. Rxc3 {[%clk 0:00:27]}  bxc3 {[%clk 0:01:07]} 33. Rd3 {[%clk 0:00:24]}  Rc8 {[%clk 0:01:07]} 34. Ne2 {[%clk 0:00:23]}  Qa3 {[%clk 0:01:05]} 35. Nxc3 {[%clk 0:00:19]}  d4 {[%clk 0:00:55]} 36. Qxd4 {[%clk 0:00:05]}  Qc1+ {[%clk 0:00:55]} 37. Rd1 {[%clk 0:00:05]}  Qxc2 {[%clk 0:00:55]} 38. Ne4 {[%clk 0:00:03]}  Qxa2 {[%clk 0:00:54]} 39. Nd6 {[%clk 0:00:02]}  Rd8 {[%clk 0:00:51]} 40. Qf4 {[%clk 0:00:02]}  Rd7 {[%clk 0:00:49]} 41. Qf3 {[%clk 0:00:02]}  Qc2 {[%clk 0:00:48]} 42. Ra1 {[%clk 0:00:01]}  Ng6 {[%clk 0:00:48]} 0-1


[Site "https://www.chess.com"]